bitfinex/quotes_BTCUSD_20250313
["timestamp","ask_amount","ask_price","bid_price","bid_amount"]
[1741854564597,0.0833,82812.0,82796.0,0.012077]
[1741854564731,0.01145912,82803.0,82798.0,0.012077]
[1741854564947,0.241496,82818.0,82796.0,0.012077]
[1741854565144,0.25357,82818.0,82797.0,0.253631]
[1741854565348,0.011466,82818.0,82804.0,0.012076]
[1741854565534,0.541481,82823.0,82800.0,0.012077]
[1741854565778,0.3,82820.0,82800.0,0.253622]
[1741854565987,0.3,82820.0,82803.0,0.012076]
[1741854565988,0.31174498,82820.0,82803.0,0.012076]
[1741854566387,0.31174498,82820.0,82802.0,0.241539]
[1741854566587,0.31174498,82820.0,82799.0,0.012077]
[1741854566588,0.3,82818.0,82799.0,0.012077]
[1741854566789,0.312074,82818.0,82794.0,0.012078]
[1741854567036,0.012075,82814.0,82793.0,0.00058658]
[1741854567237,0.012076,82807.0,82793.0,0.00058658]
[1741854567597,0.253596,82809.0,82793.0,0.00058658]
[1741854568311,0.241534,82804.0,82793.0,0.00058658]
[1741854568510,0.24153,82806.0,82793.0,0.00058658]
[1741854569131,0.012076,82807.0,82793.0,0.00058658]
[1741854569302,0.012076,82805.0,82793.0,0.00058658]
[1741854569499,0.253608,82805.0,82793.0,0.00058658]
[1741854569750,0.3,82808.0,82793.0,0.00058658]
[1741854570105,0.3,82809.0,82793.0,0.00058658]
[1741854570304,0.241552,82798.0,82793.0,0.00058658]
[1741854570508,0.012077,82801.0,82793.0,0.00058658]
[1741854570770,0.241542,82801.0,82793.0,0.00058658]
[1741854571150,0.312077,82802.0,82793.0,0.00058658]
[1741854571451,0.3,82802.0,82796.0,0.253633]
[1741854571658,0.36615517,82820.0,82815.0,0.012075]
[1741854571659,0.01174498,82820.0,82815.0,0.012075]
[1741854571859,0.01174498,82820.0,82809.0,0.012075]
[1741854572076,0.35441019,82820.0,82805.0,0.24153]
[1741854572227,0.35441019,82820.0,82804.0,0.012076]
[1741854572428,0.3,82825.0,82809.0,0.012075]
[1741854572702,0.3,82825.0,82803.0,0.241534]
[1741854572703,0.253557,82822.0,82803.0,0.241534]
[1741854572907,0.3,82823.0,82805.0,0.012076]
[1741854573101,0.3,82823.0,82806.0,0.253603]
[1741854573668,0.553554,82823.0,82807.0,1.5]
[1741854573872,0.012075,82812.0,82807.0,1.5]
[1741854574073,0.253588,82812.0,82807.0,1.5]
[1741854574271,0.012075,82812.0,82807.0,1.5]
[1741854574532,0.253594,82810.0,82807.0,1.5]
[1741854574740,0.253603,82807.0,82793.0,0.00058658]
[1741854574923,0.253595,82809.0,82793.0,0.00058658]
[1741854575126,0.633586,82812.0,82793.0,0.00058658]
[1741854575127,0.38,82812.0,82795.0,0.241558]
[1741854575335,0.3,82812.0,82797.0,0.012077]
[1741854575497,0.3,82812.0,82796.0,0.253632]
[1741854575834,0.3,82819.0,82799.0,0.012077]
[1741854576000,0.312074,82819.0,82800.0,0.012077]
[1741854576197,0.241502,82815.0,82793.0,0.01266458]
[1741854576410,0.35441019,82810.0,82793.0,0.00058658]
[1741854576588,0.241521,82809.0,82793.0,0.00058658]
[1741854576791,0.60800419,82810.0,82793.0,0.00058658]
[1741854576998,0.241527,82807.0,82793.0,0.00058658]
[1741854577442,0.253603,82807.0,82793.0,0.00058658]
[1741854577884,0.35441019,82810.0,82796.0,0.012077]
[1741854578054,0.35441019,82810.0,82793.0,0.00058658]
[1741854578216,0.012076,82808.0,82793.0,0.00058658]
[1741854578596,0.35441019,82810.0,82793.0,0.00058658]
[1741854578796,0.35441019,82810.0,82794.0,0.012078]
[1741854579639,0.241519,82809.0,82793.0,0.00058658]
[1741854579836,0.35441019,82810.0,82793.0,0.00058658]
[1741854579837,0.24154,82802.0,82793.0,0.00058658]
[1741854580061,0.241538,82803.0,82793.0,0.00058658]
[1741854580323,0.241542,82802.0,82793.0,0.00058658]
[1741854580570,0.253608,82805.0,82793.0,0.00058658]
[1741854580904,0.0101,84900.0,82804.0,0.012076]
[1741854580905,0.3,82819.0,82804.0,0.012076]
[1741854581113,0.3,82819.0,82808.0,0.24152]
[1741854581264,0.3,82819.0,82802.0,0.241538]
[1741854581447,0.012074,82817.0,82799.0,0.253624]
[1741854581645,0.012074,82816.0,82799.0,0.253624]
[1741854581855,0.312074,82819.0,82801.0,0.253619]
[1741854582073,0.3,82819.0,82803.0,0.012076]
[1741854582297,0.3,82819.0,82809.0,0.253592]
[1741854582510,0.3,82819.0,82806.0,0.012076]
[1741854582716,0.3,82819.0,82807.0,0.253599]
[1741854583693,0.01127397,82823.0,82807.0,0.253599]
[1741854583694,0.01127397,82823.0,82815.0,0.2415]
[1741854583896,0.0003386,82824.0,82815.0,0.2415]
[1741854583897,0.0003386,82824.0,82823.0,0.253551]
[1741854584269,0.0003386,82824.0,82823.0,0.498831]
[1741854584442,0.0003386,82824.0,82823.0,0.546031]
[1741854584843,0.0003386,82824.0,82823.0,2.046031]
[1741854585251,0.00042405,82824.0,82823.0,2.046031]
[1741854587183,0.00042405,82824.0,82822.0,0.3]
[1741854587401,0.00042405,82824.0,82823.0,0.012073]
[1741854587806,0.00042405,82824.0,82822.0,0.3]
[1741854588252,0.00042405,82824.0,82822.0,0.29616]
[1741854588643,0.00042405,82824.0,82822.0,0.308234]
[1741854589542,0.00042405,82824.0,82822.0,0.549715]
[1741854589712,0.00042405,82824.0,82823.0,0.012073]
[1741854591815,0.00042405,82824.0,82822.0,0.549715]
[1741854592140,0.00042405,82824.0,82822.0,0.29616]
[1741854592441,0.00042405,82824.0,82822.0,0.537638]
[1741854592597,0.00042405,82824.0,82822.0,0.549712]
[1741854593380,0.00042405,82824.0,82823.0,0.012073]
[1741854595295,0.00042405,82824.0,82822.0,0.29616]
[1741854595446,0.00042405,82824.0,82823.0,0.012073]
[1741854596046,0.00042405,82824.0,82822.0,0.29616]
[1741854598193,0.00042405,82824.0,82822.0,0.308234]
[1741854598570,0.00042405,82824.0,82823.0,0.253551]
[1741854600913,0.00042405,82824.0,82823.0,0.332051]
[1741854601121,0.00042405,82824.0,82823.0,0.61543319]
[1741854601733,0.00042405,82824.0,82823.0,0.63949822]
[1741854602193,0.00042405,82824.0,82823.0,0.416751]
[1741854603757,0.00042405,82824.0,82823.0,1.916751]
[1741854604173,5e-08,82824.0,82823.0,2.03669319]
[1741854604699,5e-08,82824.0,82823.0,2.17633404]
[1741854604903,5e-08,82824.0,82823.0,2.47633404]
[1741854607855,6.5e-07,82841.0,82840.0,0.2535]
[1741854608053,6.5e-07,82841.0,82840.0,1.44940304]
[1741854608472,6.5e-07,82841.0,82840.0,2.94940304]
[1741854609397,6.5e-07,82841.0,82840.0,2.95240304]
[1741854610038,6.5e-07,82841.0,82840.0,2.97641412]
[1741854610648,6.5e-07,82841.0,82840.0,2.96187327]
[1741854611200,6.5e-07,82841.0,82840.0,2.54711108]
[1741854611360,6.5e-07,82841.0,82840.0,1.18466]
[1741854612330,6.5e-07,82841.0,82840.0,1.18166]
[1741854613361,6.5e-07,82841.0,82840.0,0.53500219]
[1741854613570,6.5e-07,82841.0,82840.0,1.91506]
[1741854613804,6.5e-07,82841.0,82839.0,0.29616]
[1741854614164,6.5e-07,82841.0,82839.0,0.308231]
[1741854614354,6.5e-07,82841.0,82840.0,0.2535]
[1741854615015,6.5e-07,82841.0,82840.0,0.2555]
[1741854615574,6.5e-07,82841.0,82840.0,0.2535]
[1741854615796,0.00200065,82841.0,82840.0,0.2535]
[1741854616391,6.5e-07,82841.0,82840.0,0.2535]
[1741854617715,6.5e-07,82841.0,82840.0,1.7535]
[1741854618159,6.5e-07,82841.0,82840.0,1.5]
[1741854618356,6.5e-07,82841.0,82839.0,0.29616]
[1741854618555,0.00100065,82841.0,82839.0,0.29616]
[1741854619094,0.00100065,82841.0,82840.0,0.2535]
[1741854619301,6.5e-07,82841.0,82840.0,0.2535]
[1741854619642,0.00100065,82841.0,82840.0,0.2535]
[1741854620043,6.5e-07,82841.0,82840.0,0.2535]
[1741854620392,0.00100065,82841.0,82840.0,0.2535]
[1741854620955,0.00100065,82841.0,82839.0,0.29616]
[1741854621159,0.01307165,82841.0,82839.0,0.29616]
[1741854621548,0.00100065,82841.0,82839.0,0.29616]
[1741854622507,6.5e-07,82841.0,82839.0,0.29616]
[1741854622921,0.00100065,82841.0,82839.0,0.29616]
[1741854623241,0.3,82840.0,82839.0,0.29616]
[1741854623573,0.387371,82840.0,82839.0,0.29616]
[1741854624260,0.3,82840.0,82839.0,0.308231]
[1741854624451,6.5e-07,82841.0,82840.0,0.2535]
[1741854624579,6.5e-07,82841.0,82840.0,0.2525]
[1741854625608,6.5e-07,82841.0,82840.0,0.41854]
[1741854626369,6.5e-07,82841.0,82840.0,0.41654]
[1741854630167,6.5e-07,82841.0,82839.0,0.29616]
[1741854630571,6.5e-07,82841.0,82839.0,0.54966]
[1741854630770,6.5e-07,82841.0,82840.0,0.012071]
[1741854631539,6.5e-07,82841.0,82840.0,0.0132781]
[1741854632921,6.5e-07,82841.0,82840.0,0.012071]
[1741854633662,6.5e-07,82841.0,82840.0,1.512071]
[1741854634490,6.5e-07,82841.0,82840.0,0.012071]
[1741854635424,6.5e-07,82841.0,82840.0,0.013278]
[1741854636007,6.5e-07,82841.0,82840.0,0.14776104]
[1741854636203,6.5e-07,82841.0,82840.0,0.012071]
[1741854636613,6.5e-07,82841.0,82840.0,0.01327792]
[1741854636818,6.5e-07,82841.0,82840.0,0.01427792]
[1741854639444,6.5e-07,82841.0,82840.0,0.14876096]
[1741854639784,6.5e-07,82841.0,82840.0,0.26966096]
[1741854639928,6.5e-07,82841.0,82840.0,0.27045404]
[1741854641317,6.5e-07,82841.0,82840.0,0.26845404]
[1741854641517,6.5e-07,82841.0,82840.0,0.27145404]
[1741854642656,6.5e-07,82841.0,82840.0,0.57145404]
[1741854642989,6.5e-07,82841.0,82840.0,0.56845404]
[1741854643405,6.5e-07,82841.0,82840.0,0.57145404]
[1741854643605,6.5e-07,82841.0,82840.0,2.07145404]
[1741854643919,6.5e-07,82841.0,82840.0,2.06845404]
[1741854644116,0.48947578,82880.0,82871.0,0.241338]
[1741854644117,0.3,82879.0,82871.0,0.241338]
[1741854644317,0.3,82879.0,82872.0,0.012066]
[1741854644506,0.3,82879.0,82876.0,0.241321]
[1741854644705,0.3,82879.0,82877.0,0.253384]
[1741854645073,0.3115657,82879.0,82875.0,0.241327]
[1741854645358,0.0115657,82879.0,82876.0,0.241324]
[1741854645887,0.00012503,82880.0,82876.0,0.241324]
[1741854646019,0.00012503,82880.0,82877.0,0.241319]
[1741854646226,0.0117809,82880.0,82876.0,0.25339]
[1741854646430,0.00012503,82880.0,82876.0,0.25339]
[1741854647035,0.26814186,82882.0,82876.0,0.25339]
[1741854647300,0.241317,82879.0,82872.0,0.012066]
[1741854648177,0.02354476,82880.0,82873.0,0.241333]
[1741854648390,0.01147976,82880.0,82873.0,0.241333]
[1741854648813,0.02106603,82883.0,82874.0,0.241328]
[1741854649019,0.3,82882.0,82875.0,0.241325]
[1741854649368,0.01182503,82882.0,82880.0,0.253377]
[1741854649575,0.000339,82887.0,82881.0,0.253373]
[1741854649763,0.3,82886.0,82878.0,0.253382]
[1741854649990,0.312065,82883.0,82875.0,0.241324]
[1741854650333,0.253374,82882.0,82875.0,0.241324]
[1741854650923,0.253374,82882.0,82869.0,0.241344]
[1741854650924,0.241318,82878.0,82872.0,0.537495]
[1741854651126,0.241318,82878.0,82872.0,0.45808]
[1741854651338,0.253377,82880.0,82873.0,0.241331]
[1741854651532,0.253377,82880.0,82873.0,0.253397]
[1741854652275,0.012065,82882.0,82874.0,0.253394]
[1741854652451,0.01153708,82886.0,82883.0,0.241304]
[1741854652646,0.01153708,82886.0,82885.0,0.253362]
[1741854652878,0.000339,82887.0,82886.0,0.012064]
[1741854653413,0.000339,82887.0,82886.0,1.51327041]
[1741854653809,0.000339,82887.0,82886.0,1.512064]
[1741854655190,0.000339,82887.0,82886.0,1.63200619]
[1741854655815,1e-06,82887.0,82886.0,1.71180619]
[1741854655993,1e-06,82887.0,82886.0,1.72634704]
[1741854656943,1e-06,82887.0,82886.0,1.88774704]
[1741854657990,1e-06,82887.0,82886.0,1.89274704]
[1741854658402,1e-06,82887.0,82886.0,1.81294704]
[1741854659493,1e-06,82887.0,82886.0,1.80794704]
[1741854659694,1e-06,82887.0,82886.0,0.30794704]
[1741854659879,1e-06,82887.0,82886.0,0.31194704]
[1741854660294,1e-06,82887.0,82886.0,0.29340619]
[1741854660686,1e-06,82887.0,82886.0,0.29640619]
[1741854660884,1e-06,82887.0,82886.0,0.015064]
[1741854661086,1e-06,82887.0,82886.0,0.16636]
[1741854661087,0.241293,82887.0,82886.0,0.16636]
[1741854661299,1e-06,82887.0,82886.0,0.16636]
[1741854662107,1e-06,82887.0,82886.0,0.178424]
[1741854662353,1e-06,82887.0,82886.0,0.16636]
[1741854662896,0.012065,82887.0,82886.0,0.16336]
[1741854663348,0.553359,82886.0,82885.0,0.29616]
[1741854666695,0.012065,82887.0,82885.0,0.29616]
[1741854666696,1e-06,82887.0,82886.0,0.012064]
[1741854666918,0.300001,82887.0,82885.0,0.29616]
[1741854667117,0.012064,82886.0,82885.0,1.79616]
[1741854667322,0.253359,82886.0,82885.0,1.79616]
[1741854667942,0.253359,82886.0,82885.0,0.29616]
[1741854668319,1e-06,82887.0,82885.0,0.2963292]
[1741854668521,1e-06,82887.0,82886.0,0.012064]
[1741854668925,1e-06,82887.0,82886.0,0.253359]
[1741854669865,1e-06,82887.0,82886.0,0.251359]
[1741854670638,0.002001,82887.0,82886.0,0.251359]
[1741854671209,0.002001,82887.0,82886.0,0.38584204]
[1741854671452,0.002001,82887.0,82886.0,0.46854204]
[1741854673635,1e-06,82887.0,82886.0,0.46854204]
[1741854673844,1e-06,82887.0,82886.0,1.97354204]
[1741854674019,1e-06,82887.0,82886.0,1.839059]
[1741854674220,1e-06,82887.0,82886.0,1.918439]
[1741854676124,1e-06,82887.0,82886.0,1.913439]
[1741854676309,1e-06,82887.0,82886.0,1.751359]
[1741854676527,1e-06,82887.0,82886.0,0.002]
[1741854677340,0.253357,82887.0,82886.0,0.002]
[1741854678508,0.553357,82887.0,82886.0,0.002]
[1741854678867,1e-06,82887.0,82886.0,0.241295]
[1741854679307,1e-06,82887.0,82886.0,0.253359]
[1741854681108,1e-06,82887.0,82886.0,0.2535282]
[1741854681317,0.253357,82887.0,82886.0,0.0001692]
[1741854681718,0.553357,82887.0,82886.0,0.0001692]
[1741854682287,0.629557,82887.0,82886.0,0.0001692]
[1741854683380,0.633557,82887.0,82886.0,0.0001692]
[1741854684005,0.629557,82887.0,82886.0,0.0001692]
[1741854684207,0.633557,82887.0,82886.0,0.0001692]
[1741854684407,0.633557,82887.0,82885.0,0.2963292]
[1741854684408,0.01454085,82886.0,82885.0,0.5635806]
[1741854684611,0.01454085,82886.0,82852.0,0.025]
[1741854684612,0.012068,82859.0,82852.0,0.025]
[1741854684811,0.0755,82865.0,82862.0,0.241363]
[1741854685019,0.241309,82882.0,82860.0,0.012068]
[1741854685020,0.079,82872.0,82866.0,0.012067]
[1741854685256,0.079,82872.0,82869.0,0.241344]
[1741854685474,0.079,82872.0,82868.0,0.012067]
[1741854685670,0.079,82872.0,82863.0,0.025]
[1741854686068,0.31689578,82880.0,82868.0,0.012067]
[1741854686316,0.31689578,82880.0,82875.0,0.012066]
[1741854686573,0.31689578,82880.0,82873.0,0.241331]
[1741854686748,0.0808,82880.0,82875.0,0.012066]
[1741854686955,0.0808,82880.0,82874.0,0.241327]
[1741854687254,0.312064,82886.0,82878.0,0.241317]
[1741854687255,0.3,82886.0,82878.0,0.241317]
[1741854687442,0.3,82886.0,82875.0,0.25339]
[1741854687748,0.004,82880.0,82872.0,0.253401]
[1741854687977,0.541295,82886.0,82873.0,0.012066]
[1741854687978,0.00911527,82886.0,82873.0,0.012066]
[1741854688251,0.487201,82887.0,82879.0,0.253378]
[1741854688471,0.48243206,82887.0,82876.0,0.253389]
[1741854688607,0.012065,82884.0,82869.0,0.037067]
[1741854688813,0.23609578,82880.0,82874.0,0.025]
[1741854689203,0.23609578,82880.0,82869.0,0.025]
[1741854689444,0.253409,82870.0,82863.0,0.025]
[1741854689774,0.090967,82866.0,82848.0,0.20876]
[1741854689959,0.012068,82861.0,82848.0,0.426565]
[1741854690160,0.32706278,82866.0,82855.0,0.241385]
[1741854690381,0.32706278,82866.0,82854.0,0.012069]
[1741854690382,0.31499578,82866.0,82857.0,0.241377]
[1741854690517,0.241356,82865.0,82854.0,0.012069]
[1741854690722,0.31499578,82866.0,82857.0,0.253447]
[1741854690979,0.31499578,82866.0,82858.0,0.012068]
[1741854691295,0.31499578,82866.0,82854.0,0.012069]
[1741854691474,0.31499578,82866.0,82860.0,0.012068]
[1741854691621,0.01890565,82865.0,82864.0,0.253426]
[1741854692225,0.00890565,82865.0,82864.0,0.253426]
[1741854692427,0.00890565,82865.0,82864.0,0.278426]
[1741854692624,0.23609578,82880.0,82874.0,0.012066]
[1741854692850,0.23609578,82880.0,82871.0,0.012066]
[1741854692851,0.3,82879.0,82871.0,0.012066]
[1741854693256,0.3,82879.0,82866.0,0.025]
[1741854693460,0.012065,82878.0,82868.0,0.025]
[1741854693705,0.3,82879.0,82869.0,1.510067]
[1741854693912,0.012066,82875.0,82869.0,1.498]
[1741854694119,0.012066,82875.0,82866.0,0.025]
[1741854694332,0.253392,82876.0,82866.0,0.037067]
[1741854694482,0.253392,82876.0,82862.0,0.0251692]
[1741854694483,0.3,82874.0,82862.0,0.0251692]
[1741854694686,0.3,82872.0,82863.0,1.5]
[1741854695087,0.3,82872.0,82864.0,0.278425]
[1741854695293,0.3,82872.0,82866.0,0.012067]
[1741854695488,0.3,82872.0,82871.0,0.253404]
[1741854695991,0.31890551,82872.0,82871.0,0.253404]
[1741854696624,0.01890551,82872.0,82871.0,0.278404]
[1741854697047,0.01890551,82872.0,82871.0,0.351704]
[1741854699171,0.01890551,82872.0,82871.0,0.352704]
[1741854700013,0.01890551,82872.0,82871.0,0.026]
[1741854700423,0.01890551,82872.0,82871.0,0.038066]
[1741854700550,0.01890551,82872.0,82871.0,0.063066]
[1741854701903,0.01890551,82872.0,82871.0,0.001]
[1741854702237,0.01890551,82872.0,82871.0,0.013066]
[1741854702641,0.01890551,82872.0,82871.0,0.063066]
[1741854705021,0.01924411,82872.0,82871.0,0.063066]
[1741854705345,0.01924411,82872.0,82871.0,0.013066]
[1741854705552,0.01924411,82872.0,82871.0,0.038066]
[1741854705903,0.01924411,82872.0,82871.0,0.063066]
[1741854706104,0.01924411,82872.0,82871.0,0.038066]
[1741854706872,0.01924411,82872.0,82871.0,0.001]
[1741854707229,0.0124046,82872.0,82871.0,0.001]
[1741854707427,0.3124046,82872.0,82871.0,0.001]
[1741854708031,0.3003386,82872.0,82871.0,0.254404]
[1741854708552,0.0003386,82872.0,82871.0,0.254404]
[1741854709075,0.0003386,82872.0,82871.0,0.279404]
[1741854709434,0.0003386,82872.0,82871.0,0.278404]
[1741854710081,0.0023386,82872.0,82871.0,0.278404]
[1741854710285,0.0212434,82872.0,82871.0,0.278404]
[1741854710493,0.0192434,82872.0,82871.0,0.278404]
[1741854710726,0.0192434,82872.0,82871.0,0.279404]
[1741854711949,0.0192434,82872.0,82871.0,0.304404]
[1741854713641,0.0192434,82872.0,82871.0,0.351004]
[1741854715596,0.0802818,82898.0,82897.0,0.012063]
[1741854715810,1.0903,82906.0,82901.0,0.253313]
[1741854716064,0.3,82904.0,82897.0,0.012063]
[1741854716390,0.253309,82903.0,82896.0,0.266265]
[1741854717034,0.3,82904.0,82901.0,0.012062]
[1741854717237,0.40473206,82905.0,82899.0,0.241257]
[1741854717475,0.3,82904.0,82898.0,0.248322]
[1741854717663,0.65803406,82905.0,82898.0,0.248322]
[1741854718081,0.01685439,82902.0,82898.0,0.248322]
[1741854718258,0.01685439,82902.0,82896.0,0.266265]
[1741854718661,0.01685439,82902.0,82901.0,0.278313]
[1741854719263,0.03075342,82902.0,82901.0,0.012062]
[1741854719884,0.03075342,82902.0,82899.0,0.241257]
[1741854720699,0.03075342,82902.0,82900.0,0.253314]
[1741854720895,0.03075342,82902.0,82901.0,0.012062]
[1741854721101,0.03075342,82902.0,82898.0,0.025]
[1741854721318,0.27200342,82902.0,82895.0,0.05]
[1741854721517,0.03075342,82902.0,82898.0,0.025]
[1741854722124,0.03075342,82902.0,82898.0,0.278323]
[1741854722296,0.03075342,82902.0,82900.0,0.253314]
[1741854722515,0.03075342,82902.0,82900.0,0.012062]
[1741854722722,0.01185439,82902.0,82900.0,0.012062]
[1741854722928,0.01185439,82902.0,82900.0,0.253314]
[1741854723342,0.241266,82896.0,82893.0,0.025]
[1741854723546,0.241259,82899.0,82896.0,0.025]
[1741854723775,0.253321,82899.0,82896.0,0.025]
[1741854724093,0.241262,82898.0,82893.0,0.025]
[1741854724387,0.26516639,82902.0,82898.0,0.025]
[1741854724523,0.241257,82900.0,82894.0,0.025]
[1741854724885,0.253321,82899.0,82893.0,0.025]
[1741854725231,0.253319,82900.0,82897.0,0.025]
[1741854725653,0.01185439,82902.0,82898.0,0.037063]
[1741854726091,0.030754,82902.0,82898.0,0.025]
[1741854726382,0.030754,82902.0,82899.0,0.241257]
[1741854726689,0.030754,82902.0,82899.0,0.253319]
[1741854726902,0.030754,82902.0,82898.0,0.025]
[1741854727227,0.253313,82901.0,82898.0,0.025]
[1741854727563,0.253318,82900.0,82897.0,0.025]
[1741854727771,0.253313,82901.0,82897.0,0.025]
[1741854728182,0.241256,82900.0,82897.0,0.025]
[1741854728380,0.241256,82900.0,82895.0,0.037063]
[1741854728381,0.253325,82898.0,82895.0,0.025]
[1741854728837,0.012062,82900.0,82895.0,0.05]
[1741854728984,0.572004,82902.0,82898.0,0.025]
[1741854729176,0.330754,82902.0,82898.0,0.266258]
[1741854729404,0.241257,82899.0,82896.0,0.025]
[1741854729604,0.012062,82900.0,82895.0,0.025]
[1741854729805,0.253316,82901.0,82898.0,0.025]
[1741854730367,0.030754,82902.0,82901.0,0.012062]
[1741854730599,0.0310926,82902.0,82901.0,0.012062]
[1741854730803,0.0310926,82902.0,82901.0,0.062062]
[1741854730955,0.0310926,82902.0,82901.0,0.07660285]
[1741854731161,0.0310926,82902.0,82901.0,0.12470285]
[1741854731554,0.01923821,82902.0,82901.0,0.12470285]
[1741854732607,0.01923821,82902.0,82901.0,0.12590898]
[1741854732963,0.0003386,82902.0,82901.0,0.12590898]
[1741854733608,0.0003386,82902.0,82901.0,1.62590898]
[1741854733839,0.0003386,82902.0,82901.0,1.62470285]
[1741854734238,0.0003386,82902.0,82901.0,1.62870285]
[1741854735200,0.0003386,82902.0,82901.0,0.12870285]
[1741854735375,0.0003386,82902.0,82901.0,0.004]
[1741854735571,0.5536486,82902.0,82901.0,0.004]
[1741854736198,0.57254751,82902.0,82901.0,0.004]
[1741854736634,0.57254751,82902.0,82897.0,0.0001693]
[1741854736635,0.253323,82898.0,82897.0,0.0001693]
[1741854736768,0.64934751,82902.0,82876.0,0.7662]
[1741854736769,0.253387,82877.0,82876.0,0.7662]
[1741854737515,0.27228993,82877.0,82876.0,0.7662]
[1741854737732,0.26022393,82877.0,82876.0,0.7662]
[1741854737931,0.27228993,82877.0,82876.0,0.7662]
[1741854738230,0.241338,82872.0,82869.0,0.0001693]
[1741854738407,0.012066,82876.0,82871.0,0.00012503]
[1741854738610,0.253391,82876.0,82872.0,0.025]
[1741854739052,0.012066,82876.0,82871.0,0.01219103]
[1741854739250,0.57229193,82877.0,82876.0,0.001]
[1741854739683,0.31890293,82877.0,82876.0,0.001]
[1741854740084,0.01890293,82877.0,82876.0,0.013066]
[1741854740217,0.01890293,82877.0,82876.0,0.07760685]
[1741854740624,0.01890293,82877.0,82876.0,0.07660685]
[1741854741689,0.0125097,82877.0,82876.0,0.07660685]
[1741854741887,0.012065,82884.0,82878.0,0.025]
[1741854742097,0.012064,82887.0,82884.0,0.025]
[1741854742098,0.012064,82886.0,82884.0,0.025]
[1741854742324,0.3,82892.0,82888.0,0.012064]
[1741854742534,0.3,82892.0,82891.0,0.24128]
[1741854742862,0.3,82892.0,82889.0,0.241286]
[1741854743038,0.241264,82897.0,82889.0,0.241286]
[1741854743039,0.312062,82899.0,82893.0,0.012063]
[1741854743178,0.0003386,82897.0,82894.0,0.253334]
[1741854744203,0.3003386,82897.0,82893.0,0.253337]
[1741854744466,0.3003386,82897.0,82894.0,0.253332]
[1741854744692,0.3003386,82897.0,82896.0,0.012063]
[1741854744895,0.3003386,82897.0,82893.0,0.012063]
[1741854745069,0.0003386,82897.0,82893.0,0.012063]
[1741854745275,0.0003386,82897.0,82895.0,0.012063]
[1741854745673,0.0003386,82897.0,82896.0,0.253329]
[1741854745872,0.00041396,82897.0,82896.0,0.253329]
[1741854746080,0.00341396,82897.0,82896.0,0.253329]
[1741854746281,0.00341396,82897.0,82896.0,0.278329]
[1741854746442,0.00341396,82897.0,82896.0,0.303329]
[1741854746647,0.00041396,82897.0,82896.0,0.303329]
[1741854747532,0.00041396,82897.0,82896.0,0.278329]
[1741854747742,0.00041396,82897.0,82896.0,0.303329]
[1741854748166,0.00241396,82897.0,82896.0,0.303329]
[1741854748770,0.00041396,82897.0,82896.0,0.303329]
[1741854751927,0.00041396,82897.0,82896.0,0.36506985]
[1741854752130,0.0003386,82902.0,82901.0,0.31785385]
[1741854752349,0.0003386,82902.0,82901.0,1.81785385]
[1741854753570,0.0003386,82902.0,82901.0,1.79285385]
[1741854753800,0.0003386,82902.0,82901.0,1.97213385]
[1741854754114,0.0003386,82902.0,82899.0,0.05]
[1741854754115,0.0124006,82902.0,82899.0,0.05]
[1741854754313,0.012062,82900.0,82899.0,0.1792]
[1741854754433,0.012063,82897.0,82896.0,0.053]
[1741854754630,0.253319,82900.0,82896.0,0.05]
[1741854754944,0.2536506,82902.0,82883.0,0.17912]
[1741854754945,0.012065,82884.0,82883.0,0.17912]
[1741854755168,0.012064,82885.0,82884.0,0.03954085]
[1741854755368,0.241292,82887.0,82886.0,0.025]
[1741854755570,0.3,82892.0,82890.0,0.025]
[1741854756191,0.253344,82891.0,82890.0,0.025]
[1741854756411,0.012064,82890.0,82889.0,0.025]
[1741854756618,0.012064,82890.0,82886.0,0.006]
[1741854756619,0.253356,82887.0,82886.0,0.006]
[1741854756768,0.253356,82887.0,82886.0,0.031]
[1741854757366,0.012064,82890.0,82889.0,0.025]
[1741854757977,0.312064,82890.0,82886.0,0.031]
[1741854758196,0.253356,82887.0,82886.0,0.025]
[1741854758367,0.312064,82890.0,82886.0,0.025]
[1741854759150,0.012061,82908.0,82889.0,0.25335]
[1741854759367,0.3,82905.0,82891.0,0.29288485]
[1741854759531,0.0124006,82902.0,82891.0,0.29288485]
[1741854760152,0.3124006,82902.0,82891.0,0.29288485]
[1741854760361,0.3003386,82902.0,82891.0,0.31788485]
[1741854760560,0.3124006,82902.0,82891.0,0.31788485]
[1741854761362,0.0003386,82902.0,82891.0,0.31788485]
[1741854762685,0.012063,82898.0,82891.0,0.06454085]
[1741854763045,0.253325,82898.0,82891.0,0.07660485]
[1741854763251,0.312062,82901.0,82891.0,0.07660485]
[1741854763394,0.0003386,82902.0,82891.0,0.07660485]
[1741854763753,0.0003386,82902.0,82891.0,0.08260485]
[1741854764764,0.241257,82899.0,82891.0,0.08260485]
[1741854764993,0.0003386,82902.0,82891.0,0.08260485]
[1741854766631,0.0124006,82902.0,82891.0,0.08260485]
[1741854767026,0.0124006,82902.0,82891.0,0.08277415]
[1741854767245,0.3003386,82902.0,82891.0,0.08398046]
[1741854767475,0.3003386,82902.0,82891.0,0.08277415]
[1741854768389,0.0003386,82902.0,82891.0,0.08277415]
[1741854771189,0.0003386,82902.0,82891.0,0.23513415]
[1741854771808,0.0003386,82902.0,82901.0,0.31785385]
[1741854773265,0.0003386,82902.0,82901.0,0.32085385]
[1741854774636,0.0003386,82902.0,82901.0,1.81785385]
[1741854774837,0.0003386,82902.0,82901.0,1.82285385]
[1741854776059,0.0003386,82902.0,82901.0,0.29785385]
[1741854776266,0.0003386,82902.0,82901.0,0.005]
[1741854776487,0.27254446,82902.0,82901.0,0.005]
[1741854777006,0.57254446,82902.0,82901.0,0.005]
[1741854777902,0.55334,82892.0,82891.0,0.0001693]
[1741854778711,0.5722401,82892.0,82891.0,0.0001693]
[1741854779148,0.5722401,82892.0,82891.0,0.0051693]
[1741854780278,0.5601771,82892.0,82891.0,0.0051693]